[Event "Championship of RSO-Alania 2020"]
[Site "Vladikavkaz, Russia"]
[Date "2021.01.02"]
[Round "2.5"]
[White "Koraev, Kazbek"]
[Black "Tsamalaidze, Liana"]
[Result "0-1"]
[TimeControl "90+30"]
[WhiteElo "1755"]
[BlackElo "1446"]

1. e4 {[%clk 01:30:43]} {[%emt 00:00:15]} c6 {[%clk 01:30:25]} {[%emt
00:00:36]} 2. d4 {[%clk 01:30:54]} {[%emt 00:00:18]} g6 {[%clk 01:30:23]}
{[%emt 00:00:33]} 3. Nf3 {[%clk 01:27:58]} {[%emt 00:03:25]} d5 {[%clk
01:30:21]} {[%emt 00:00:33]} 4. Nc3 {[%clk 01:28:14]} {[%emt 00:00:14]} Bg7
{[%clk 01:28:34]} {[%emt 00:02:17]} 5. exd5 {[%clk 01:20:52]} {[%emt 00:07:51]}
cxd5 {[%clk 01:28:56]} {[%emt 00:00:09]} 6. Bb5+ {[%clk 01:21:02]} {[%emt
00:00:19]} Bd7 {[%clk 01:25:35]} {[%emt 00:03:52]} 7. Qe2 {[%clk 01:17:16]}
{[%emt 00:04:15]} a6 {[%clk 01:20:20]} {[%emt 00:05:46]} 8. Bxd7+ {[%clk
01:14:25]} {[%emt 00:03:20]} Qxd7 {[%clk 01:20:40]} {[%emt 00:00:11]} 9. O-O
{[%clk 01:14:20]} {[%emt 00:00:35]} Nc6 {[%clk 01:20:57]} {[%emt 00:00:14]} 10.
Be3 {[%clk 01:14:08]} {[%emt 00:00:40]} Nf6 {[%clk 01:21:17]} {[%emt 00:00:11]}
11. Rad1 {[%clk 01:10:32]} {[%emt 00:04:06]} Qd6 {[%clk 01:14:51]} {[%emt
00:06:56]} 12. Qd2 {[%clk 01:04:13]} {[%emt 00:06:48]} Ne4 {[%clk 01:09:15]}
{[%emt 00:06:08]} 13. Nxe4 {[%clk 01:03:52]} {[%emt 00:00:51]} dxe4 {[%clk
01:09:41]} {[%emt 00:00:04]} 14. Ng5 {[%clk 01:02:05]} {[%emt 00:02:15]} Qd5
{[%clk 01:01:28]} {[%emt 00:08:45]} 15. b3 {[%clk 00:58:01]} {[%emt 00:04:33]}
h6 {[%clk 00:53:23]} {[%emt 00:08:35]} 16. c4 {[%clk 00:57:29]} {[%emt
00:01:02]} Qf5 {[%clk 00:53:03]} {[%emt 00:00:50]} 17. Nh3 {[%clk 00:57:51]}
{[%emt 00:00:08]} g5 {[%clk 00:53:03]} {[%emt 00:00:30]} 18. f3 {[%clk
00:57:52]} {[%emt 00:00:29]} exf3 {[%clk 00:44:01]} {[%emt 00:09:33]} 19. Rxf3
{[%clk 00:57:18]} {[%emt 00:01:03]} Qg6 {[%clk 00:44:15]} {[%emt 00:00:16]} 20.
Rff1 {[%clk 00:42:03]} {[%emt 00:15:44]} O-O {[%clk 00:44:05]} {[%emt
00:00:42]} 21. d5 {[%clk 00:41:31]} {[%emt 00:01:01]} Ne5 {[%clk 00:44:24]}
{[%emt 00:00:12]} 22. Bd4 {[%clk 00:41:38]} {[%emt 00:00:21]} Qd6 {[%clk
00:36:44]} {[%emt 00:08:11]} 23. Nf2 {[%clk 00:37:33]} {[%emt 00:04:33]} f5
{[%clk 00:37:06]} {[%emt 00:00:10]} 24. Qb2 {[%clk 00:36:33]} {[%emt 00:01:28]}
Rf7 {[%clk 00:27:42]} {[%emt 00:09:56]} 25. Rfe1 {[%clk 00:35:51]} {[%emt
00:01:10]} Nd7 {[%clk 00:26:08]} {[%emt 00:02:04]} 26. Bxg7 {[%clk 00:35:40]}
{[%emt 00:00:42]} Rxg7 {[%clk 00:26:34]} {[%emt 00:00:04]} 27. Re6 {[%clk
00:30:22]} {[%emt 00:05:45]} Qf4 {[%clk 00:26:37]} {[%emt 00:00:30]} 28. Rde1
{[%clk 00:28:03]} {[%emt 00:02:48]} Rf8 {[%clk 00:19:42]} {[%emt 00:07:27]} 29.
Rxe7 {[%clk 00:25:42]} {[%emt 00:02:50]} Rff7 {[%clk 00:12:20]} {[%emt
00:07:52]} 30. Rxf7 {[%clk 00:25:04]} {[%emt 00:01:08]} Rxf7 {[%clk 00:11:41]}
{[%emt 00:01:10]} 31. Qe2 {[%clk 00:24:41]} {[%emt 00:00:52]} Nf6 {[%clk
00:11:03]} {[%emt 00:01:09]} 32. Qe3 {[%clk 00:22:14]} {[%emt 00:02:56]} Qd6
{[%clk 00:11:00]} {[%emt 00:00:28]} 33. Qc3 {[%clk 00:19:11]} {[%emt 00:03:37]}
Re7 {[%clk 00:09:22]} {[%emt 00:02:10]} 34. Rxe7 {[%clk 00:16:03]} {[%emt
00:03:38]} Qxe7 {[%clk 00:09:48]} {[%emt 00:00:05]} 35. Kf1 {[%clk 00:15:43]}
{[%emt 00:00:48]} Kf7 {[%clk 00:06:32]} {[%emt 00:03:46]} 36. h3 {[%clk
00:10:59]} {[%emt 00:05:15]} b5 {[%clk 00:02:10]} {[%emt 00:04:53]} 37. Qd4
{[%clk 00:09:50]} {[%emt 00:01:36]} bxc4 {[%clk 00:02:05]} {[%emt 00:00:38]} 38.
bxc4 {[%clk 00:09:52]} {[%emt 00:00:28]} Qd6 {[%clk 00:01:57]} {[%emt
00:00:38]} 39. Nd3 {[%clk 00:08:44]} {[%emt 00:01:37]} Ke7 {[%clk 00:00:50]}
{[%emt 00:01:38]} 40. Ne5 {[%clk 00:06:32]} {[%emt 00:02:41]} Ne4 {[%clk
00:01:16]} {[%emt 00:00:05]} 41. Nc6+ {[%clk 00:06:14]} {[%emt 00:00:45]} Kf7
{[%clk 00:01:37]} {[%emt 00:00:11]} 42. Ne5+ {[%clk 00:05:38]} {[%emt
00:01:03]} Ke7 {[%clk 00:02:06]} {[%emt 00:00:04]} 43. Qa7+ {[%clk 00:04:50]}
{[%emt 00:01:16]} Kf6 {[%clk 00:01:53]} {[%emt 00:00:45]} 44. Nd7+ {[%clk
00:01:48]} {[%emt 00:03:31]} Kg6 {[%clk 00:01:11]} {[%emt 00:01:13]} 45. Qb6
{[%clk 00:02:01]} {[%emt 00:00:17]} Qxb6 {[%clk 00:00:47]} {[%emt 00:00:54]} 46.
Nxb6 {[%clk 00:02:20]} {[%emt 00:00:10]} Kf6 {[%clk 00:01:15]} {[%emt
00:00:03]} 47. Ke2 {[%clk 00:02:20]} {[%emt 00:00:27]} Nc3+ {[%clk 00:01:26]}
{[%emt 00:00:21]} 48. Kd3 {[%clk 00:02:35]} {[%emt 00:00:15]} Nxa2 {[%clk
00:01:44]} {[%emt 00:00:12]} 49. Kd4 {[%clk 00:02:51]} {[%emt 00:00:13]} Nc1
{[%clk 00:01:56]} {[%emt 00:00:19]} 50. c5 {[%clk 00:03:05]} {[%emt 00:00:16]}
Ne2+ {[%clk 00:02:01]} {[%emt 00:00:26]} 51. Kc4 {[%clk 00:02:22]} {[%emt
00:01:13]} Ke7 {[%clk 00:01:21]} {[%emt 00:01:10]} 52. d6+ {[%clk 00:02:16]}
{[%emt 00:00:35]} Ke6 {[%clk 00:01:47]} {[%emt 00:00:04]} 53. d7 {[%clk
00:02:23]} {[%emt 00:00:23]} Ke7 {[%clk 00:02:14]} {[%emt 00:00:03]} 54. c6
{[%clk 00:02:07]} {[%emt 00:00:45]} Kd8 {[%clk 00:02:43]} {[%emt 00:00:02]} 55.
Kc5 {[%clk 00:02:07]} {[%emt 00:00:29]} Nc3 {[%clk 00:02:53]} {[%emt 00:00:21]}
56. Nd5 {[%clk 00:01:27]} {[%emt 00:01:10]} Nb5 {[%clk 00:02:58]} {[%emt
00:00:25]} 57. Kb6 {[%clk 00:01:32]} {[%emt 00:00:24]} Nd6 {[%clk 00:01:51]}
{[%emt 00:01:38]} 58. Nf6 {[%emt 00:02:18]} Nb5 59. Kxa6 {[%emt 00:00:02]} Nc7+
{[%emt 00:00:03]} 60. Kb7 {[%emt 00:00:01]} 0-1

[Event "Championship of RSO-Alania 2020"]
[Site "Vladikavkaz, Russia"]
[Date "2021.01.03"]
[Round "3.1"]
[White "Dryaeva, Lana"]
[Black "Tandelov, Arseny"]
[Result "1-0"]
[TimeControl "90+30"]
[WhiteElo "1404"]
[BlackElo "1657"]

1. Nf3 {[%clk 01:30:57]} {[%emt 00:00:02]} d5 {[%clk 01:30:51]} {[%emt
00:00:09]} 2. b3 {[%clk 01:31:24]} {[%emt 00:00:04]} Nf6 {[%clk 01:31:12]}
{[%emt 00:00:09]} 3. e3 {[%clk 01:31:49]} {[%emt 00:00:05]} c5 {[%clk
01:31:36]} {[%emt 00:00:06]} 4. Bb2 {[%clk 01:32:16]} {[%emt 00:00:03]} b6
{[%clk 01:32:03]} {[%emt 00:00:03]} 5. d3 {[%clk 01:32:42]} {[%emt 00:00:05]}
Bb7 {[%clk 01:32:28]} {[%emt 00:00:05]} 6. Nbd2 {[%clk 01:33:07]} {[%emt
00:00:05]} Nbd7 {[%clk 01:32:49]} {[%emt 00:00:09]} 7. Be2 {[%clk 01:33:06]}
{[%emt 00:00:30]} Qc7 {[%clk 01:33:10]} {[%emt 00:00:09]} 8. c4 {[%clk
01:32:32]} {[%emt 00:01:04]} e6 {[%clk 01:33:28]} {[%emt 00:00:13]} 9. O-O
{[%clk 01:32:57]} {[%emt 00:00:05]} Bd6 {[%clk 01:33:55]} {[%emt 00:00:03]} 10.
h3 {[%clk 01:33:07]} {[%emt 00:00:20]} O-O {[%clk 01:34:20]} {[%emt 00:00:06]}
11. Rc1 {[%clk 01:33:25]} {[%emt 00:00:11]} Rac8 {[%clk 01:32:42]} {[%emt
00:02:08]} 12. d4 {[%clk 01:31:12]} {[%emt 00:02:44]} Ne4 {[%clk 01:31:19]}
{[%emt 00:01:53]} 13. dxc5 {[%clk 01:27:45]} {[%emt 00:03:57]} bxc5 {[%clk
01:31:36]} {[%emt 00:00:13]} 14. cxd5 {[%clk 01:19:24]} {[%emt 00:08:51]} exd5
{[%clk 01:31:52]} {[%emt 00:00:14]} 15. Nxe4 {[%clk 01:19:31]} {[%emt
00:00:23]} dxe4 {[%clk 01:32:16]} {[%emt 00:00:07]} 16. Nd4 {[%clk 01:17:30]}
{[%emt 00:02:31]} Be5 {[%clk 01:30:45]} {[%emt 00:02:01]} 17. Rc2 {[%clk
01:14:03]} {[%emt 00:03:57]} Rcd8 {[%clk 01:29:58]} {[%emt 00:01:17]} 18. Qc1
{[%clk 01:11:42]} {[%emt 00:02:51]} Qb6 {[%clk 01:21:22]} {[%emt 00:09:07]} 19.
Nb5 {[%clk 01:02:44]} {[%emt 00:09:28]} Bb8 {[%clk 01:18:50]} {[%emt 00:03:01]}
20. Rd1 {[%clk 00:48:56]} {[%emt 00:14:18]} Ba6 {[%clk 01:05:29]} {[%emt
00:13:52]} 21. Nc3 {[%clk 00:40:15]} {[%emt 00:09:10]} Qc7 {[%clk 01:03:48]}
{[%emt 00:02:11]} 22. Bxa6 {[%clk 00:26:01]} {[%emt 00:14:45]} Qh2+ {[%clk
01:04:13]} {[%emt 00:00:04]} 23. Kf1 {[%clk 00:26:30]} {[%emt 00:00:01]} Qh1+
{[%clk 01:04:38]} {[%emt 00:00:05]} 24. Ke2 {[%clk 00:26:58]} {[%emt 00:00:03]}
Qxg2 {[%clk 01:05:02]} {[%emt 00:00:05]} 25. Rg1 {[%clk 00:22:56]} {[%emt
00:04:32]} Qf3+ {[%clk 01:05:27]} {[%emt 00:00:04]} 26. Ke1 {[%clk 00:23:14]}
{[%emt 00:00:12]} Bh2 {[%clk 01:04:49]} {[%emt 00:01:08]} 27. Be2 {[%clk
00:17:57]} {[%emt 00:05:46]} Qxh3 {[%clk 01:04:12]} {[%emt 00:01:07]} 28. Rf1
{[%clk 00:17:21]} {[%emt 00:01:06]} f5 {[%clk 01:04:29]} {[%emt 00:00:13]} 29.
Nd5 {[%clk 00:15:44]} {[%emt 00:02:07]} Qh4 {[%clk 01:01:13]} {[%emt 00:03:46]}
30. Rh1 {[%clk 00:12:30]} {[%emt 00:03:44]} Rde8 {[%clk 01:00:16]} {[%emt
00:01:22]} 31. Qa1 {[%clk 00:11:43]} {[%emt 00:01:22]} f4 {[%clk 00:56:15]}
{[%emt 00:04:32]} 32. Bc4 {[%clk 00:09:40]} {[%emt 00:02:32]} h6 {[%clk
00:54:48]} {[%emt 00:01:57]} 33. Nf6+ {[%clk 00:09:12]} {[%emt 00:00:58]} Kh8
{[%clk 00:55:06]} {[%emt 00:00:11]} 34. Nxe8 {[%clk 00:09:34]} {[%emt
00:00:09]} Rxe8 {[%clk 00:55:31]} {[%emt 00:00:05]} 35. Qd1 {[%clk 00:03:21]}
{[%emt 00:06:43]} Rd8 {[%clk 00:55:12]} {[%emt 00:00:49]} 36. Qd6 {[%clk
00:02:12]} {[%emt 00:01:38]} Qh5 {[%clk 00:51:14]} {[%emt 00:04:29]} 37. Qe7
{[%clk 00:01:44]} {[%emt 00:00:58]} Nf6 {[%clk 00:49:45]} {[%emt 00:01:58]} 38.
Qxd8+ {[%clk 00:02:09]} {[%emt 00:00:05]} Kh7 {[%clk 00:50:10]} {[%emt
00:00:04]} 39. Bxf6 {[%clk 00:02:21]} {[%emt 00:00:20]} fxe3 {[%clk 00:50:24]}
{[%emt 00:00:17]} 40. Qg8+ {[%clk 00:02:34]} {[%emt 00:00:17]} 1-0

[Event "Championship of RSO-Alania 2020"]
[Site "Vladikavkaz, Russia"]
[Date "2021.01.03"]
[Round "3.2"]
[White "Agkatsev, Albert A"]
[Black "Agkatsev, Felix A"]
[Result "1-0"]
[TimeControl "90+30"]
[WhiteElo "1550"]
[BlackElo "1338"]

1. e4 {[%clk 01:30:59]} {[%emt 00:09:30]} c6 {[%clk 01:30:35]} {[%emt
00:00:26]} 2. d4 {[%clk 01:31:25]} {[%emt 00:00:04]} d5 {[%clk 01:31:01]}
{[%emt 00:00:04]} 3. exd5 {[%clk 01:31:52]} {[%emt 00:00:03]} cxd5 {[%clk
01:31:28]} {[%emt 00:00:03]} 4. c4 {[%clk 01:32:19]} {[%emt 00:00:02]} Nf6
{[%clk 01:31:51]} {[%emt 00:00:07]} 5. Nc3 {[%clk 01:32:44]} {[%emt 00:00:04]}
g6 {[%clk 01:31:57]} {[%emt 00:00:24]} 6. Nf3 {[%clk 01:33:02]} {[%emt
00:00:12]} Bg7 {[%clk 01:32:21]} {[%emt 00:00:06]} 7. cxd5 {[%clk 01:31:28]}
{[%emt 00:02:04]} Nxd5 {[%clk 01:32:00]} {[%emt 00:00:51]} 8. Bc4 {[%clk
01:31:46]} {[%emt 00:00:13]} Nb6 {[%clk 01:28:44]} {[%emt 00:03:46]} 9. Bb3
{[%clk 01:31:18]} {[%emt 00:00:58]} O-O {[%clk 01:28:40]} {[%emt 00:00:33]} 10.
h3 {[%clk 01:31:18]} {[%emt 00:00:30]} Nc6 {[%clk 01:28:39]} {[%emt 00:00:31]}
11. Be3 {[%clk 01:31:17]} {[%emt 00:00:30]} Na5 {[%clk 01:28:28]} {[%emt
00:00:41]} 12. O-O {[%clk 01:31:07]} {[%emt 00:00:40]} Nac4 {[%clk 01:27:51]}
{[%emt 00:01:39]} 13. Qe2 {[%clk 01:31:28]} {[%emt 00:00:38]} Nxe3 {[%clk
01:27:02]} {[%emt 00:01:18]} 14. fxe3 {[%clk 01:31:32]} {[%emt 00:00:25]} e6
{[%clk 01:27:03]} {[%emt 00:00:30]} 15. Rf2 {[%clk 01:29:29]} {[%emt 00:02:30]}
Bd7 {[%clk 01:23:06]} {[%emt 00:04:29]} 16. Raf1 {[%clk 01:29:07]} {[%emt
00:00:51]} Bc6 {[%clk 01:19:41]} {[%emt 00:04:29]} 17. Nd2 {[%clk 01:28:19]}
{[%emt 00:01:45]} Nd5 {[%clk 01:18:33]} {[%emt 00:01:38]} 18. e4 {[%clk
01:26:06]} {[%emt 00:02:43]} Nxc3 {[%clk 01:16:55]} {[%emt 00:02:08]} 19. bxc3
{[%clk 01:26:26]} {[%emt 00:00:10]} Qd7 {[%clk 01:15:45]} {[%emt 00:01:41]} 20.
Rd1 {[%clk 01:25:07]} {[%emt 00:01:48]} Ba4 {[%clk 01:14:07]} {[%emt 00:02:08]}
21. e5 {[%clk 01:23:23]} {[%emt 00:02:14]} Bxb3 {[%clk 01:13:30]} {[%emt
00:01:08]} 22. axb3 {[%clk 01:21:36]} {[%emt 00:02:17]} f6 {[%emt 00:02:29]} 23.
exf6 {[%clk 01:20:27]} {[%emt 00:00:02]} Rxf6 {[%clk 01:13:25]} {[%emt
00:00:13]} 24. Rxf6 {[%clk 01:20:50]} {[%emt 00:00:07]} Bxf6 {[%clk 01:13:54]}
25. Ne4 {[%clk 01:19:51]} {[%emt 00:01:30]} Be7 {[%clk 01:13:22]} {[%emt
00:01:02]} 26. Qg4 {[%clk 01:16:00]} {[%emt 00:04:13]} Qd5 {[%clk 01:12:29]}
{[%emt 00:01:30]} 27. c4 {[%clk 01:15:40]} {[%emt 00:00:50]} Qf5 {[%clk
01:12:28]} {[%emt 00:00:32]} 28. Qxf5 {[%clk 01:15:25]} {[%emt 00:00:45]} gxf5
{[%emt 00:03:55]} 29. Nc3 {[%clk 01:11:52]} {[%emt 00:02:09]} Bf6 {[%clk
01:08:57]} {[%emt 00:02:30]} 30. Nb5 {[%clk 01:11:20]} {[%emt 00:01:02]} Rd8
{[%clk 01:09:00]} {[%emt 00:00:27]} 31. d5 {[%clk 01:11:26]} {[%emt 00:00:24]}
exd5 {[%clk 01:08:26]} {[%emt 00:01:03]} 32. Rxd5 {[%clk 01:11:31]} {[%emt
00:00:24]} Rxd5 {[%clk 01:07:26]} {[%emt 00:01:31]} 33. cxd5 {[%clk 01:12:00]}
{[%emt 00:00:01]} Be5 {[%clk 01:07:30]} {[%emt 00:00:26]} 34. Kf2 {[%clk
01:11:40]} {[%emt 00:00:47]} a6 {[%clk 01:07:48]} {[%emt 00:00:16]} 35. Na3
{[%clk 01:12:08]} {[%emt 00:00:02]} b5 {[%clk 01:07:52]} {[%emt 00:00:25]} 36.
Ke3 {[%clk 01:12:24]} {[%emt 00:00:13]} Kf7 {[%clk 01:08:06]} {[%emt 00:00:16]}
37. g4 {[%clk 01:11:44]} {[%emt 00:01:10]} fxg4 {[%clk 01:07:47]} {[%emt
00:00:49]} 38. hxg4 {[%clk 01:12:10]} {[%emt 00:00:04]} Kf6 {[%clk 01:04:40]}
{[%emt 00:03:37]} 39. Ke4 {[%clk 01:11:18]} {[%emt 00:01:22]} Bd6 {[%clk
01:05:00]} {[%emt 00:00:09]} 40. Nc2 {[%clk 01:11:39]} {[%emt 00:00:08]} Kg5
{[%clk 01:04:25]} {[%emt 00:01:06]} 41. Kf3 {[%clk 01:11:47]} {[%emt 00:00:22]}
a5 {[%clk 01:03:08]} {[%emt 00:01:48]} 42. Nd4 {[%clk 01:10:44]} {[%emt
00:01:32]} a4 {[%clk 01:03:19]} {[%emt 00:00:19]} 43. Nxb5 {[%clk 01:11:02]}
{[%emt 00:00:13]} axb3 {[%clk 01:03:28]} {[%emt 00:00:20]} 44. Nxd6 {[%clk
01:10:58]} {[%emt 00:00:34]} Kf6 {[%clk 01:03:03]} {[%emt 00:00:55]} 45. Nc4
{[%clk 01:11:04]} {[%emt 00:00:24]} b2 {[%clk 01:03:28]} {[%emt 00:00:05]} 46.
Nxb2 {[%clk 01:11:30]} {[%emt 00:00:04]} Ke5 {[%clk 01:03:51]} {[%emt
00:00:07]} 47. g5 {[%clk 01:11:36]} {[%emt 00:00:24]} Kxd5 {[%clk 01:04:08]}
{[%emt 00:00:14]} 48. Kg4 {[%clk 01:11:59]} {[%emt 00:00:06]} Ke6 {[%clk
01:03:55]} {[%emt 00:00:43]} 49. Kh5 {[%clk 01:12:24]} {[%emt 00:00:05]} Kf7
{[%clk 01:04:15]} {[%emt 00:00:10]} 50. Kh6 {[%clk 01:12:53]} Kg8 {[%clk
01:04:44]} {[%emt 00:00:02]} 51. Nd3 {[%clk 01:13:12]} {[%emt 00:00:11]} Kh8
{[%clk 01:05:00]} {[%emt 00:00:14]} 52. Nf4 {[%clk 01:13:27]} {[%emt 00:00:14]}
Kg8 {[%clk 01:05:15]} {[%emt 00:00:15]} 53. Ng6 {[%clk 01:13:30]} {[%emt
00:00:27]} 1-0

[Event "Championship of RSO-Alania 2020"]
[Site "Vladikavkaz, Russia"]
[Date "2021.01.03"]
[Round "3.4"]
[White "Shkurupiy, Konstantin"]
[Black "Hastsaev, Marat"]
[Result "0-1"]
[TimeControl "90+30"]
[WhiteElo "1592"]
[BlackElo "2007"]

1. e4 {[%clk 01:30:30]} {[%emt 00:02:44]} e6 {[%clk 01:30:30]} {[%emt
00:00:03]} 2. d3 {[%clk 01:30:30]} {[%emt 00:00:09]} d5 {[%clk 01:30:30]}
{[%emt 00:00:07]} 3. Nd2 {[%clk 01:30:30]} {[%emt 00:00:06]} c5 {[%clk
01:30:30]} {[%emt 00:00:12]} 4. Ngf3 {[%clk 01:30:30]} {[%emt 00:00:06]} Nf6
{[%clk 01:30:30]} {[%emt 00:00:36]} 5. g3 {[%clk 01:30:30]} {[%emt 00:00:12]}
Nc6 {[%clk 01:30:30]} {[%emt 00:01:57]} 6. Bg2 {[%clk 01:30:30]} {[%emt
00:00:08]} Bd6 {[%clk 01:30:30]} {[%emt 00:01:57]} 7. O-O {[%clk 01:30:42]}
{[%emt 00:01:22]} O-O {[%clk 01:30:45]} {[%emt 00:00:39]} 8. Re1 {[%clk
01:29:45]} {[%emt 00:01:26]} Qc7 {[%clk 01:30:24]} {[%emt 00:00:52]} 9. c3
{[%clk 01:29:07]} {[%emt 00:01:08]} b6 {[%clk 01:29:54]} {[%emt 00:01:00]} 10.
Nh4 {[%clk 01:28:36]} {[%emt 00:01:00]} Bb7 {[%clk 01:20:27]} {[%emt 00:09:58]}
11. f4 {[%clk 01:28:11]} {[%emt 00:00:55]} dxe4 {[%clk 01:20:48]} {[%emt
00:00:10]} 12. dxe4 {[%clk 01:28:15]} {[%emt 00:00:25]} Be7 {[%clk 01:20:36]}
{[%emt 00:00:42]} 13. e5 {[%clk 01:26:29]} {[%emt 00:02:17]} Ne8 {[%clk
01:15:09]} {[%emt 00:05:58]} 14. Ne4 {[%clk 01:20:06]} {[%emt 00:06:52]} f6
{[%clk 01:11:58]} {[%emt 00:03:41]} 15. exf6 {[%clk 01:15:33]} {[%emt
00:05:03]} Nxf6 {[%clk 01:08:59]} {[%emt 00:03:29]} 16. Ng5 {[%clk 01:15:21]}
{[%emt 00:00:41]} Nd8 {[%clk 01:07:57]} {[%emt 00:01:33]} 17. Bxb7 {[%clk
01:12:07]} {[%emt 00:03:44]} Qxb7 {[%clk 01:08:23]} {[%emt 00:00:04]} 18. Nxe6
{[%clk 01:12:02]} {[%emt 00:00:35]} Nxe6 {[%clk 01:08:14]} {[%emt 00:00:38]} 19.
Rxe6 {[%clk 01:12:17]} {[%emt 00:00:15]} Rad8 {[%clk 01:06:41]} {[%emt
00:02:03]} 20. Qe2 {[%clk 01:09:54]} {[%emt 00:02:53]} Nd5 {[%clk 01:05:48]}
{[%emt 00:01:23]} 21. Nf3 {[%clk 01:07:38]} {[%emt 00:02:46]} Bf6 {[%clk
01:02:21]} {[%emt 00:03:58]} 22. Bd2 {[%clk 01:05:12]} {[%emt 00:02:56]} b5
{[%clk 00:57:53]} {[%emt 00:04:58]} 23. Re1 {[%clk 01:04:12]} {[%emt 00:01:19]}
b4 {[%clk 00:56:16]} {[%emt 00:02:18]} 24. Ng5 {[%clk 00:48:34]} {[%emt
00:16:07]} bxc3 {[%clk 00:52:27]} {[%emt 00:04:19]} 25. bxc3 {[%clk 00:48:27]}
{[%emt 00:00:37]} Nxc3 {[%clk 00:50:40]} {[%emt 00:02:17]} 26. Bxc3 {[%clk
00:41:45]} {[%emt 00:07:12]} Bxc3 {[%clk 00:51:05]} {[%emt 00:00:05]} 27. Nf3
{[%clk 00:41:10]} {[%emt 00:01:04]} Bxe1 {[%clk 00:49:51]} {[%emt 00:01:45]} 28.
Nxe1 {[%clk 00:41:24]} {[%emt 00:00:15]} Qd5 {[%clk 00:49:27]} {[%emt
00:00:54]} 29. Re5 {[%clk 00:38:55]} {[%emt 00:02:59]} Qd4+ {[%clk 00:48:39]}
{[%emt 00:01:18]} 30. Kf1 {[%clk 00:38:44]} {[%emt 00:00:40]} Rb8 {[%clk
00:46:26]} {[%emt 00:02:43]} 31. Re4 {[%clk 00:38:33]} {[%emt 00:00:41]} Qd5
{[%clk 00:45:35]} {[%emt 00:01:21]} 32. Nf3 {[%clk 00:31:33]} {[%emt 00:07:29]}
Rb4 {[%clk 00:41:45]} {[%emt 00:04:21]} 33. Re7 {[%clk 00:29:35]} {[%emt
00:02:27]} a5 {[%clk 00:39:37]} {[%emt 00:02:38]} 34. Kg2 {[%clk 00:28:44]}
{[%emt 00:01:21]} Ra4 {[%clk 00:39:08]} {[%emt 00:01:00]} 35. Kh3 {[%clk
00:26:08]} {[%emt 00:03:06]} Rxa2 {[%clk 00:39:04]} {[%emt 00:00:35]} 36. Qe3
{[%clk 00:20:49]} {[%emt 00:01:28]} Qf5+ {[%clk 00:38:56]} {[%emt 00:04:57]} 37.
g4 {[%clk 00:19:12]} {[%emt 00:02:08]} Qxf4 {[%clk 00:37:46]} {[%emt 00:01:40]}
38. Qe6+ {[%clk 00:17:13]} {[%emt 00:02:28]} Kh8 {[%clk 00:38:04]} {[%emt
00:00:13]} 39. Qc6 {[%clk 00:16:12]} {[%emt 00:01:31]} Qxf3+ {[%clk 00:37:57]}
{[%emt 00:00:37]} 40. Qxf3 {[%clk 00:16:23]} {[%emt 00:00:18]} Rxf3+ {[%clk
00:38:24]} {[%emt 00:00:04]} 0-1